bitfinex-derivatives/quotes_BTCF0:USTF0_20250729
["timestamp","ask_amount","ask_price","bid_price","bid_amount"]
[1753810334084,0.6393361,118140.0,118130.0,1.21214658]
[1753810334881,0.6393361,118140.0,118130.0,1.57294658]
[1753810335298,0.6393361,118140.0,118130.0,1.07047972]
[1753810335683,0.6393361,118140.0,118130.0,1.8732943]
[1753810335982,0.6393361,118140.0,118130.0,1.63232116]
[1753810336378,0.6393361,118140.0,118130.0,1.8732943]
[1753810336588,0.6393361,118140.0,118130.0,1.63232116]
[1753810337188,0.6393361,118140.0,118130.0,0.87097508]
[1753810337489,0.6393361,118140.0,118130.0,1.61293508]
[1753810337684,0.6393361,118140.0,118130.0,0.87097508]
[1753810337879,1.33901656,118140.0,118130.0,0.3278004]
[1753810338085,1.33901656,118140.0,118130.0,0.1693204]
[1753810338287,1.33901656,118140.0,118130.0,0.9121604]
[1753810338485,1.0001361,118140.0,118130.0,0.9121604]
[1753810339094,0.4286704,118130.0,118120.0,1.3800841]
[1753810339287,0.9986604,118130.0,118120.0,1.3800841]
[1753810341494,0.9986604,118130.0,118120.0,0.3517642]
[1753810341794,1.33754086,118130.0,118120.0,0.0680508]
[1753810341982,0.3587047,118120.0,118110.0,1.21394628]
[1753810342187,0.6378747,118120.0,118110.0,0.4124917]
[1753810342493,0.6378747,118120.0,118110.0,0.5268817]
[1753810342889,0.6378747,118120.0,118110.0,0.58717628]
[1753810343091,0.6378747,118120.0,118110.0,0.8876817]
[1753810343594,0.6378747,118120.0,118110.0,0.8886817]
[1753810343995,0.64628428,118120.0,118110.0,0.8886817]
[1753810344195,0.04606,118120.0,118110.0,1.22756216]
[1753810344692,0.18937,118140.0,118130.0,0.4421903]
[1753810344997,0.404736,118140.0,118130.0,1.1831103]
[1753810345197,0.637846,118140.0,118130.0,1.1831103]
[1753810345497,0.64621567,118140.0,118130.0,1.1831103]
[1753810348494,0.637846,118140.0,118130.0,1.1831103]
[1753810349187,0.637846,118140.0,118130.0,1.5439103]
[1753810349903,0.637846,118140.0,118130.0,1.1831103]
[1753810351294,0.637846,118140.0,118130.0,1.1807903]
[1753810351799,0.2153659,118140.0,118130.0,1.51967076]
[1753810351998,0.2153659,118140.0,118130.0,1.88047076]
[1753810352307,0.2969859,118140.0,118130.0,1.88047076]
[1753810352597,0.5300959,118140.0,118130.0,1.88047076]
[1753810353701,0.5300959,118140.0,118120.0,0.42858644]
[1753810353702,0.6378459,118140.0,118120.0,0.42858644]
[1753810353895,0.6378602,118130.0,118120.0,0.50999094]
[1753810354094,0.6378602,118130.0,118120.0,1.24815094]
[1753810354899,0.6378602,118130.0,118120.0,1.24779094]
[1753810356208,0.6378602,118130.0,118120.0,0.50999094]
[1753810356407,0.6378602,118130.0,118120.0,1.07845644]
[1753810356697,0.1693345,118120.0,118110.0,0.71260348]
[1753810356901,0.6378745,118120.0,118110.0,1.13908217]
[1753810357302,0.6378745,118120.0,118110.0,0.40216217]
[1753810357498,0.6378745,118120.0,118110.0,1.24777649]
[1753810357902,0.2577172,118130.0,118120.0,0.4422045]
[1753810358104,0.04606,118130.0,118120.0,1.20217954]
[1753810358299,0.04606,118130.0,118120.0,1.14188496]
[1753810358801,0.04606,118130.0,118120.0,1.20241747]
[1753810359002,0.2153801,118130.0,118120.0,0.8030045]
[1753810359202,0.2153801,118130.0,118120.0,1.14188496]
[1753810359705,0.2153801,118130.0,118120.0,0.8030045]
[1753810359906,0.2153801,118130.0,118120.0,1.14188496]
[1753810360101,0.2153801,118130.0,118120.0,1.20241747]
[1753810361906,0.04606,118130.0,118120.0,1.20241747]
[1753810363002,0.2153802,118130.0,118120.0,1.20241747]
[1753810363407,0.04606,118130.0,118120.0,1.20241747]
[1753810364002,0.2153793,118130.0,118120.0,1.20241747]
[1753810364503,0.2153793,118130.0,118120.0,1.14188496]
[1753810364804,0.2153793,118130.0,118120.0,0.8030045]
[1753810366609,0.2153793,118130.0,118120.0,1.14188496]
[1753810367210,0.2153793,118130.0,118120.0,0.8030045]
[1753810367406,0.2461193,118130.0,118120.0,1.14188496]
[1753810367710,0.3687093,118130.0,118120.0,1.14188496]
[1753810368109,0.3687093,118130.0,118120.0,1.21722333]
[1753810368811,0.04606,118130.0,118120.0,1.21722333]
[1753810369105,0.2946957,118140.0,118130.0,0.4365301]
[1753810369304,0.2946957,118140.0,118130.0,2.10150258]
[1753810369704,0.12539,118140.0,118130.0,2.10150258]
[1753810370006,0.2946959,118140.0,118130.0,2.10150258]
[1753810370311,0.0455,118140.0,118130.0,2.10150258]
[1753810370514,0.0455,118140.0,118130.0,2.04096286]
[1753810370815,0.0455,118140.0,118130.0,2.04926898]
[1753810371615,0.2148059,118140.0,118130.0,2.04096286]
[1753810372613,0.2148059,118140.0,118130.0,1.7020824]
[1753810372912,0.2148059,118140.0,118130.0,2.04096286]
[1753810374818,0.2148059,118140.0,118130.0,1.9430055]
[1753810375221,0.2148059,118140.0,118130.0,1.9516037]
[1753810375410,0.2148059,118140.0,118130.0,2.01214342]
[1753810375716,0.2148059,118140.0,118130.0,2.00354522]
[1753810378521,0.2148059,118140.0,118130.0,1.9430055]
[1753810378719,0.6524659,118140.0,118130.0,0.8819846]
[1753810378913,0.6524659,118140.0,118130.0,1.4225401]
[1753810380318,0.6524659,118140.0,118130.0,0.6913401]
[1753810380523,0.893389,118140.0,118130.0,0.3608]
[1753810380719,1.312685,118140.0,118130.0,0.37389938]
[1753810381028,0.6524802,118130.0,118120.0,0.3608]
[1753810381217,1.6238433,118130.0,118120.0,0.3608]
[1753810381418,2.0431553,118130.0,118120.0,0.3608]
[1753810382520,2.0431553,118130.0,118120.0,0.2858]
[1753810382921,0.3592388,118110.0,118100.0,0.06813464]
[1753810383125,0.3592532,118100.0,118090.0,0.66823587]
[1753810383328,0.6525232,118100.0,118090.0,0.66823587]
[1753810384133,0.6525232,118100.0,118090.0,0.6326575]
[1753810384426,0.6525232,118100.0,118090.0,0.94891897]
[1753810384831,0.6525232,118100.0,118090.0,0.66823587]
[1753810385020,0.66086773,118100.0,118090.0,0.66823587]
[1753810385422,0.6525232,118100.0,118090.0,0.70799587]
[1753810385826,0.6525232,118100.0,118090.0,0.6326575]
[1753810386228,0.6525232,118100.0,118090.0,0.70100635]
[1753810386426,0.6525232,118100.0,118090.0,0.77634472]
[1753810386625,0.6525232,118100.0,118090.0,0.70100635]
[1753810387426,0.1301774,118110.0,118090.0,1.04008422]
[1753810387627,0.2148624,118100.0,118090.0,1.09287032]
[1753810387930,0.4199524,118100.0,118090.0,1.43968925]
[1753810388122,0.5425224,118100.0,118090.0,1.51392925]
[1753810388625,0.5425224,118100.0,118090.0,1.85300712]
[1753810388826,0.4691024,118100.0,118090.0,1.85300712]
[1753810389125,0.12539,118100.0,118090.0,1.85300712]
[1753810389430,0.0455,118100.0,118090.0,1.85300712]
[1753810390032,0.2148625,118100.0,118090.0,1.85300712]
[1753810390830,0.2148625,118100.0,118090.0,1.91341303]
[1753810391731,0.2148625,118100.0,118090.0,1.85300712]
[1753810391930,0.2148625,118100.0,118090.0,1.85400712]
[1753810394240,0.2148625,118100.0,118090.0,1.51492925]
[1753810394530,0.0455,118100.0,118090.0,1.51492925]
[1753810394830,0.2116982,118110.0,118100.0,0.1693626]
[1753810395033,0.5375211,118120.0,118110.0,0.3649183]
[1753810395233,0.7701811,118120.0,118110.0,0.6502983]
[1753810395828,0.7278446,118120.0,118110.0,0.6502983]
[1753810396128,0.7191859,118120.0,118110.0,0.6502983]
[1753810396437,0.6345039,118120.0,118110.0,1.71509617]
[1753810396630,0.39349,118120.0,118110.0,1.71509617]
[1753810396827,0.5628238,118120.0,118110.0,1.71509617]
[1753810397536,0.6345038,118120.0,118110.0,1.71509617]
[1753810397836,0.6345038,118120.0,118110.0,1.2649483]
[1753810398035,0.6345038,118120.0,118110.0,1.3362583]
[1753810398234,0.6345038,118120.0,118110.0,0.1693483]
[1753810398422,0.1693481,118110.0,118100.0,1.2677069]
[1753810398624,0.6345325,118100.0,118090.0,0.55711676]
[1753810398829,0.97361037,118100.0,118090.0,0.23771465]
[1753810399028,0.1693625,118100.0,118090.0,0.23771465]
[1753810399230,0.6345325,118100.0,118090.0,0.71866465]
[1753810399436,0.6345325,118100.0,118090.0,0.77907056]
[1753810399835,0.6345325,118100.0,118090.0,1.11914843]
[1753810400236,0.6345325,118100.0,118090.0,0.78007056]
[1753810400830,0.6345325,118100.0,118090.0,0.67990465]
[1753810401838,0.6345325,118100.0,118090.0,0.71966465]
[1753810404341,0.6345325,118100.0,118090.0,0.67990465]
[1753810405033,0.6345325,118100.0,118090.0,1.40562465]
[1753810407045,0.6345325,118100.0,118090.0,1.44438465]
[1753810408246,0.6345325,118100.0,118090.0,1.50479056]
[1753810408446,0.6345325,118100.0,118090.0,0.77907056]
[1753810408646,0.6345325,118100.0,118090.0,1.46499056]
[1753810409535,0.6345325,118100.0,118090.0,1.02380056]
[1753810409741,0.6345325,118100.0,118090.0,1.19811056]
[1753810409942,0.6345325,118100.0,118090.0,1.26942056]
[1753810410550,0.6345325,118100.0,118090.0,0.73931056]
[1753810411546,0.87566377,118100.0,118090.0,0.50953885]
[1753810411850,0.87566377,118100.0,118090.0,0.75425412]
[1753810412145,1.77065577,118100.0,118090.0,0.13594663]
[1753810412350,1.77065577,118100.0,118090.0,0.06060826]
[1753810412550,0.87566377,118100.0,118090.0,0.22998516]
[1753810412750,1.3601325,118100.0,118090.0,0.95206643]
[1753810412949,0.6345325,118100.0,118090.0,0.89145817]
[1753810413153,0.2943725,118100.0,118090.0,0.6503269]
[1753810413351,0.2943725,118100.0,118090.0,0.89145817]
[1753810413653,0.5270325,118100.0,118090.0,0.96679654]
[1753810413851,0.6345325,118100.0,118090.0,0.1693769]
[1753810414054,0.6345325,118100.0,118090.0,0.47559948]
[1753810415257,0.6345325,118100.0,118090.0,0.54357126]
[1753810415949,0.6345325,118100.0,118090.0,0.70763126]
[1753810416151,0.6345325,118100.0,118090.0,0.73914126]
[1753810416359,0.87566377,118100.0,118090.0,0.29795126]
[1753810416547,0.6345325,118100.0,118090.0,0.29795126]
[1753810418047,0.6345325,118100.0,118090.0,0.47226126]
[1753810418546,0.6345325,118100.0,118090.0,1.02003253]
[1753810419955,0.6345325,118100.0,118090.0,0.77890126]
[1753810422455,0.6345325,118100.0,118090.0,0.73914126]
[1753810423059,0.87566377,118100.0,118090.0,0.73914126]
[1753810423950,0.6345325,118100.0,118090.0,0.73914126]
[1753810426559,0.6345325,118100.0,118090.0,0.77890126]
[1753810427458,0.6345325,118100.0,118090.0,0.53166126]
[1753810427658,0.6345325,118100.0,118090.0,0.72726126]
[1753810428165,0.6345325,118100.0,118090.0,0.66665868]
[1753810429162,0.6345325,118100.0,118090.0,0.70641868]
[1753810429353,0.6345325,118100.0,118090.0,0.76702126]
[1753810432261,0.6345325,118100.0,118090.0,0.29795126]
[1753810432460,0.6345325,118100.0,118090.0,0.72726126]
[1753810436368,0.6345325,118100.0,118090.0,0.76702126]
[1753810438269,0.6345325,118100.0,118090.0,0.70641868]
[1753810440967,0.6345325,118100.0,118090.0,0.66665868]
[1753810442369,0.65381293,118100.0,118090.0,0.66665868]
[1753810443874,0.8949442,118100.0,118090.0,0.66665868]
[1753810444171,0.6345325,118100.0,118090.0,0.66665868]
[1753810444474,0.6538149,118100.0,118090.0,0.66665868]
[1753810445172,0.6538149,118100.0,118090.0,0.66915254]
[1753810445673,0.89494617,118100.0,118090.0,0.23984254]
[1753810445873,0.89494617,118100.0,118090.0,0.40262254]
[1753810446577,0.89494617,118100.0,118090.0,0.07046564]
[1753810446769,0.89494807,118100.0,118090.0,0.00249386]
[1753810446970,0.4804423,118080.0,118070.0,0.84085467]
[1753810447174,0.6381123,118080.0,118070.0,0.84085467]
[1753810447476,0.6381123,118080.0,118070.0,1.00664757]
[1753810448170,0.6381123,118080.0,118070.0,1.00764757]
[1753810448571,0.6381123,118080.0,118070.0,1.01601964]
[1753810449072,0.6381123,118080.0,118070.0,1.00764757]
[1753810450174,0.6381123,118080.0,118070.0,1.07545336]
[1753810452179,0.6381123,118080.0,118070.0,0.83432209]
[1753810452581,0.6381123,118080.0,118070.0,1.07545336]
[1753810453976,0.6381123,118080.0,118070.0,0.83432209]
[1753810454376,0.1694059,118070.0,118060.0,0.07533837]
[1753810454580,0.3654002,118060.0,118050.0,0.54929734]
[1753810454770,0.6558802,118060.0,118050.0,0.69334571]
[1753810454971,0.24214,118060.0,118050.0,0.97423698]
[1753810455274,0.6982202,118070.0,118060.0,0.3578902]
[1753810455475,0.6982202,118070.0,118060.0,1.68013065]
[1753810455883,0.48646,118070.0,118060.0,1.74772716]
[1753810456079,0.48646,118070.0,118060.0,1.50759589]
[1753810456378,0.48646,118070.0,118060.0,1.02460716]
[1753810456683,0.48646,118070.0,118060.0,1.74872716]
[1753810457583,0.04616,118070.0,118060.0,1.74872716]
[1753810457973,0.48646,118070.0,118060.0,1.50759589]
[1753810458474,0.6558659,118070.0,118060.0,1.46771589]
[1753810458674,0.89699717,118070.0,118060.0,1.39900589]
[1753810458875,0.1693986,118080.0,118060.0,0.74371589]
[1753810458876,0.2117445,118080.0,118060.0,0.74371589]
[1753810459080,0.6558515,118080.0,118070.0,0.6390659]
[1753810459484,0.48646,118080.0,118070.0,0.6390659]
[1753810459675,0.6558515,118080.0,118070.0,0.71486508]
[1753810461091,0.6558515,118080.0,118070.0,0.67510508]
[1753810462196,0.89698277,118080.0,118070.0,0.67510508]
[1753810462889,0.6558515,118080.0,118070.0,0.67510508]
[1753810463088,0.89698277,118080.0,118070.0,0.69419597]
[1753810463599,0.89698277,118080.0,118070.0,0.61839679]
[1753810464290,0.6558515,118080.0,118070.0,0.61839679]
[1753810465191,0.89698277,118080.0,118070.0,0.61839679]
[1753810466501,0.89698277,118080.0,118070.0,0.5993059]
[1753810466793,1.62054277,118080.0,118070.0,0.5993059]
[1753810470697,1.3794115,118080.0,118070.0,0.5993059]
[1753810470898,1.62054277,118080.0,118070.0,0.5993059]
[1753810475511,1.3794115,118080.0,118070.0,0.5993059]
[1753810475712,1.62054277,118080.0,118070.0,0.5993059]
[1753810478008,1.62054277,118080.0,118070.0,0.4999059]
[1753810478208,0.1694055,118070.0,118060.0,0.43277041]
[1753810478403,0.6558655,118070.0,118060.0,0.79396041]
[1753810478603,0.6558655,118070.0,118060.0,1.51696041]
[1753810479501,0.6558655,118070.0,118060.0,0.79396041]
[1753810479710,0.6558655,118070.0,118060.0,1.51688041]
[1753810480408,0.6558655,118070.0,118060.0,0.79496041]
[1753810480598,0.6558655,118070.0,118060.0,1.55760041]
[1753810481199,0.6558655,118070.0,118060.0,1.79873168]
[1753810482918,0.48646,118070.0,118060.0,1.79873168]
[1753810483106,0.6558656,118070.0,118060.0,1.79873168]
[1753810488122,0.6558656,118070.0,118060.0,1.55760041]
[1753810488420,0.6558656,118070.0,118060.0,1.79873168]
[1753810490022,0.6558656,118070.0,118060.0,1.80273168]
[1753810490823,0.92726213,118070.0,118060.0,1.83299694]
[1753810493424,0.92726213,118070.0,118060.0,1.90879612]
[1753810495620,0.92726213,118070.0,118060.0,1.18591612]
[1753810495826,0.6558656,118070.0,118060.0,0.91451959]
[1753810496027,0.92726213,118070.0,118060.0,1.14615612]
[1753810496329,0.92726213,118070.0,118060.0,0.73132569]
[1753810496523,0.92726213,118070.0,118060.0,0.65552651]
[1753810496723,0.92726213,118070.0,118060.0,0.76075651]
[1753810496920,0.6558656,118070.0,118060.0,0.76075651]
[1753810497121,0.92726213,118070.0,118060.0,0.76075651]
[1753810498525,0.92726213,118070.0,118060.0,0.56787651]
[1753810498728,0.92726213,118070.0,118060.0,0.75860651]
[1753810499120,0.92726213,118070.0,118060.0,1.03000304]
[1753810499615,0.92726213,118070.0,118060.0,0.75860651]
[1753810502226,0.92726213,118070.0,118060.0,1.03000304]
[1753810502731,0.92726213,118070.0,118060.0,0.75860651]
[1753810502929,0.92726213,118070.0,118060.0,1.03000304]
[1753810504032,0.92726213,118070.0,118060.0,1.06976304]
[1753810504334,1.64894213,118070.0,118060.0,1.06976304]
[1753810505434,1.64894213,118070.0,118060.0,0.79836651]
[1753810505630,1.64894213,118070.0,118060.0,1.06976304]
[1753810505931,1.64894213,118070.0,118060.0,0.75860651]
[1753810508234,1.64894213,118070.0,118060.0,0.44250391]
[1753810508441,1.3772656,118070.0,118060.0,0.71625391]
[1753810508633,1.64866213,118070.0,118060.0,0.71625391]
[1753810509038,1.3772656,118070.0,118060.0,0.6486574]
[1753810509233,1.64866213,118070.0,118060.0,0.92005393]
[1753810509430,1.64866213,118070.0,118060.0,0.6486574]
[1753810510026,1.64866213,118070.0,118060.0,0.92005393]
[1753810510243,0.92726213,118070.0,118060.0,0.92005393]
[1753810510441,1.64858213,118070.0,118060.0,0.92005393]
[1753810510642,1.64858213,118070.0,118060.0,0.95981393]
[1753810511641,1.64858213,118070.0,118060.0,0.92005393]
[1753810512353,1.64858213,118070.0,118060.0,0.6486574]
[1753810512853,1.64858213,118070.0,118060.0,0.2167574]
[1753810513551,1.3771856,118070.0,118060.0,0.3852774]
[1753810513851,1.64858213,118070.0,118060.0,0.3852774]
[1753810514552,1.64842213,118070.0,118060.0,0.3852774]
[1753810514954,1.3770256,118070.0,118060.0,0.3852774]
[1753810515254,1.64842213,118070.0,118060.0,0.5655674]
[1753810515454,1.64842213,118070.0,118060.0,0.6451174]
[1753810516147,1.64842213,118070.0,118060.0,0.91651393]
[1753810516453,1.64842213,118070.0,118060.0,0.6451174]
[1753810516652,1.3770256,118070.0,118060.0,0.6451174]
[1753810516853,1.64842213,118070.0,118060.0,0.6451174]
[1753810520751,0.6558656,118070.0,118060.0,0.91651393]
[1753810520951,1.64814213,118070.0,118060.0,0.91651393]
[1753810522657,1.64814213,118070.0,118060.0,0.6451174]
[1753810525162,1.64814213,118070.0,118060.0,0.5735674]
[1753810525361,1.64814213,118070.0,118060.0,0.5412174]
[1753810526455,1.64814213,118070.0,118060.0,0.2167574]
[1753810526663,1.66829174,118070.0,118060.0,0.1744055]
[1753810528562,1.66829174,118070.0,118060.0,0.005]
[1753810529455,1.64814213,118070.0,118060.0,0.005]
[1753810530960,1.71632998,118070.0,118060.0,0.1744198]
[1753810531148,1.71632998,118070.0,118060.0,0.005]
[1753810532659,0.4808686,118040.0,118030.0,0.73071078]
[1753810532862,1.63176513,118040.0,118030.0,0.80226078]
[1753810533070,1.63176513,118040.0,118030.0,0.07579918]
[1753810533361,0.639983,118030.0,118020.0,0.07579918]
[1753810533554,0.91980558,118030.0,118020.0,0.07579918]
[1753810533751,1.19120211,118030.0,118020.0,0.07579918]
[1753810533948,0.6399973,118020.0,118010.0,0.48596168]
[1753810534152,1.90307036,118020.0,118010.0,0.65617474]
[1753810534659,1.90307036,118020.0,118010.0,0.72772474]
[1753810534956,1.63167383,118020.0,118010.0,0.72772474]
[1753810535164,1.63167383,118020.0,118010.0,0.28778264]
[1753810535361,1.90307036,118020.0,118010.0,0.28778264]
[1753810535555,1.90307036,118020.0,118010.0,0.07593224]
[1753810535955,0.6400116,118010.0,118000.0,0.24601224]
[1753810536163,0.91140813,118010.0,118000.0,0.24601224]
[1753810536464,0.91140813,118010.0,118000.0,0.17008]
[1753810536758,0.88156732,118010.0,118000.0,0.567076]
[1753810537554,0.6400116,118010.0,118000.0,0.599426]
[1753810537761,0.6400116,118010.0,118000.0,0.639186]
[1753810537961,1.3602116,118010.0,118000.0,0.70664761]
[1753810538359,0.6400116,118010.0,118000.0,0.70664761]
[1753810538664,0.6400116,118010.0,118000.0,0.70764761]
[1753810539163,0.88156732,118010.0,118000.0,0.59633761]
[1753810539464,0.88156732,118010.0,118000.0,0.66788761]
[1753810539856,0.88156732,118010.0,118000.0,0.59633761]
[1753810540058,0.6400116,118010.0,118000.0,0.63553761]
[1753810540367,0.88156732,118010.0,118000.0,0.63553761]
[1753810541169,0.88156732,118010.0,118000.0,0.23796751]
[1753810542167,0.88156732,118010.0,118000.0,0.47959751]
[1753810542758,0.88156732,118010.0,118000.0,0.58833751]
[1753810542958,0.88156732,118010.0,118000.0,0.63553751]
[1753810543667,0.88156732,118010.0,118000.0,0.06846161]
[1753810544962,0.88156732,118010.0,118000.0,0.06746161]
[1753810545158,0.3179561,118000.0,117990.0,0.5814156]
[1753810545462,1.61191182,118000.0,117990.0,0.6502456]
[1753810546166,1.61191182,118000.0,117990.0,0.71766568]
[1753810547664,1.61191182,118000.0,117990.0,0.71866568]
[1753810547964,1.61191182,118000.0,117990.0,0.43256578]
[1753810548158,1.85346754,118000.0,117990.0,0.06842008]
[1753810548361,1.61191182,118000.0,117990.0,0.23794048]
[1753810548876,1.61191182,118000.0,117990.0,0.06842008]
[1753810550456,1.85346754,118000.0,117990.0,0.06842008]
[1753810550662,1.13354754,118000.0,117990.0,0.06842008]
[1753810550857,0.6504505,117990.0,117980.0,0.0001]
[1753810551167,0.89200622,117990.0,117980.0,0.0001]
[1753810551762,1.61160622,117990.0,117980.0,0.0001]
[1753810553466,1.61160622,117990.0,117980.0,0.1716347]
[1753810553868,1.61160622,117990.0,117980.0,0.0021]
[1753810555273,1.61160622,117990.0,117980.0,0.1716348]
[1753810555474,1.61148622,117990.0,117980.0,0.1716348]
[1753810555674,1.61148622,117990.0,117980.0,0.0021]
[1753810556075,1.3699305,117990.0,117980.0,0.0021]
[1753810556267,1.61148622,117990.0,117980.0,0.0021]
[1753810556568,1.61148622,117990.0,117980.0,0.1716347]
[1753810556769,1.61148622,117990.0,117980.0,0.0021]
[1753810557170,1.61148622,117990.0,117980.0,0.1716347]
[1753810558167,1.61148622,117990.0,117980.0,0.0021]
[1753810558678,1.61148622,117990.0,117980.0,0.1716346]
[1753810561180,1.63234114,117990.0,117980.0,0.1716346]
[1753810561479,1.63202114,117990.0,117980.0,0.1716346]
[1753810562577,1.63202937,117990.0,117980.0,0.1716346]
[1753810563881,0.67131365,117990.0,117980.0,0.3662646]
[1753810564079,1.39031355,117990.0,117980.0,0.6497446]
[1753810564974,1.3694504,117990.0,117980.0,0.6497446]
[1753810565175,1.39033445,117990.0,117980.0,0.6497446]
[1753810565477,1.63189218,117990.0,117980.0,0.6099846]
[1753810565683,1.63177218,117990.0,117980.0,0.6099846]
[1753810569683,1.63178793,117990.0,117980.0,0.6099846]
[1753810570678,1.63178793,117990.0,117980.0,0.1716346]
[1753810570876,1.63178793,117990.0,117980.0,0.0021]
[1753810573987,0.04901,117970.0,117930.0,0.29455364]
[1753810574186,0.48102,117940.0,117930.0,0.63649024]
[1753810574392,0.32634872,117950.0,117940.0,0.6417823]
[1753810574393,1.4113156,117950.0,117940.0,0.6417823]
[1753810574691,0.6929956,117950.0,117940.0,0.6417823]
[1753810576685,0.6929956,117950.0,117940.0,0.6447823]
[1753810577088,0.6929956,117950.0,117940.0,0.6467823]
[1753810577681,0.6929956,117950.0,117940.0,0.71408502]
[1753810578088,1.27417775,117960.0,117950.0,0.6417677]
[1753810578594,0.74381775,117960.0,117950.0,0.6417677]
[1753810578786,0.68387532,117960.0,117950.0,0.6417677]
[1753810578987,0.7353796,117960.0,117950.0,0.6417677]
[1753810579187,0.97693532,117960.0,117950.0,0.6417677]
[1753810579588,0.97693532,117960.0,117950.0,0.6437677]
[1753810580693,0.97693532,117960.0,117950.0,0.6447677]
[1753810580890,0.97693532,117960.0,117950.0,0.47519]
[1753810581092,0.97693532,117960.0,117950.0,0.1995]
[1753810581286,0.97693532,117960.0,117950.0,0.003]
[1753810582291,0.98525148,117960.0,117950.0,0.003]
[1753810582690,0.98525148,117960.0,117950.0,0.172578]
[1753810583193,0.98525148,117960.0,117950.0,0.418098]
[1753810585593,0.98525148,117960.0,117950.0,0.644768]
[1753810586592,0.98525148,117960.0,117950.0,0.172578]
[1753810586791,0.98525148,117960.0,117950.0,0.644768]
[1753810587092,1.0751636,117960.0,117950.0,0.644768]
[1753810587395,0.18796,117960.0,117950.0,0.88632372]
[1753810587599,1.3681387,117970.0,117960.0,0.3573536]
[1753810587785,1.4528994,117980.0,117970.0,0.3573393]
[1753810587994,1.4528994,117980.0,117970.0,0.6417393]
[1753810588199,0.5710287,117980.0,117970.0,0.5622593]
[1753810594498,0.5710287,117980.0,117970.0,1.2793793]
[1753810594700,0.6505687,117980.0,117970.0,1.3283993]
[1753810596792,0.13858,117980.0,117970.0,1.3283993]
[1753810596998,0.6505433,117990.0,117980.0,0.8112524]
[1753810598506,0.6525433,117990.0,117980.0,0.8112524]
[1753810599002,0.6535433,117990.0,117980.0,0.8112524]
[1753810599701,0.6535433,117990.0,117980.0,1.5280124]
[1753810601900,0.19096,117990.0,117980.0,1.5280124]
[1753810602103,0.003,117990.0,117980.0,1.76956812]
[1753810611423,0.1725208,117990.0,117980.0,1.76956812]
[1753810611629,0.003,117990.0,117980.0,1.76956812]
[1753810614716,0.46974,118010.0,118000.0,0.6454163]
[1753810614914,0.6392319,118010.0,118000.0,1.3607763]
[1753810615926,0.47274,118010.0,118000.0,1.3607763]
[1753810616122,0.66684357,118010.0,118000.0,1.3607763]
[1753810616828,0.49735157,118010.0,118000.0,1.3607763]
[1753810618130,0.02761157,118010.0,118000.0,1.60233202]
[1753810618423,0.007,118010.0,118000.0,1.66923822]
[1753810622430,0.007,118010.0,118000.0,1.67753044]
[1753810622628,0.007,118010.0,118000.0,1.66923822]
[1753810623336,0.007,118010.0,118000.0,1.4276825]
[1753810623631,0.007,118010.0,118000.0,1.66923822]
[1753810623826,0.007,118010.0,118000.0,1.67787208]
[1753810629236,0.007,118010.0,118000.0,1.6969171]
[1753810630435,0.007,118010.0,118000.0,1.6968149]
[1753810631635,0.007,118010.0,118000.0,1.69694597]
[1753810631831,0.007,118010.0,118000.0,1.68831211]
[1753810632030,0.007,118010.0,118000.0,1.56766211]
[1753810632232,0.007,118010.0,118000.0,1.64100211]
[1753810632531,0.007,118010.0,118000.0,1.64940859]
[1753810632727,0.007,118010.0,118000.0,1.64100222]
[1753810634239,0.007,118010.0,118000.0,1.64082158]
[1753810635031,0.007,118010.0,118000.0,1.68641158]
[1753810635238,0.007,118010.0,118000.0,1.68666777]
[1753810635637,0.007,118010.0,118000.0,1.63893777]
[1753810635934,0.007,118010.0,118000.0,1.40570951]
[1753810636243,0.007,118010.0,118000.0,1.63893777]
[1753810637941,0.007,118010.0,118000.0,1.63876674]
[1753810638740,0.007,118010.0,118000.0,1.68721674]
[1753810639344,0.007,118010.0,118000.0,1.76321317]
[1753810640042,0.007,118010.0,118000.0,1.77170907]
[1753810641638,0.007,118010.0,118000.0,1.69571264]
[1753810648943,0.007,118010.0,118000.0,1.69475264]
[1753810650446,0.29223895,118040.0,118000.0,1.69475264]
[1753810650646,0.47549,118040.0,118030.0,0.6420936]
[1753810650846,0.47904,118050.0,118040.0,0.5205093]
[1753810651055,0.47904,118050.0,118040.0,0.88363502]
[1753810651744,0.47904,118050.0,118040.0,0.6420793]
[1753810652147,0.6484749,118050.0,118040.0,0.6420793]
[1753810652348,0.6494749,118050.0,118040.0,0.6420793]
[1753810659360,0.67002067,118050.0,118040.0,0.6420793]
[1753810664158,0.67002067,118050.0,118040.0,0.08001]
[1753810664363,0.67002067,118050.0,118020.0,0.19169304]
[1753810664364,0.6546536,118030.0,118020.0,0.27301154]
[1753810664560,0.2521879,118020.0,118010.0,0.6958609]
[1753810664763,0.89622362,118020.0,118010.0,1.4070609]
[1753810664953,0.6546679,118020.0,118010.0,1.4070609]
[1753810665867,0.6546679,118020.0,118010.0,1.4070209]
[1753810667165,0.67523133,118020.0,118010.0,1.4070209]
[1753810667672,0.67523133,118020.0,118010.0,1.4069809]
[1753810668069,0.67523133,118020.0,118010.0,0.6958609]
[1753810668369,0.67523133,118020.0,118010.0,1.4068609]
[1753810668767,0.6546679,118020.0,118010.0,1.4068609]
[1753810669065,0.6546824,118010.0,118000.0,0.6917678]
[1753810669263,0.6546824,118010.0,118000.0,1.4312932]
[1753810670066,0.6546824,118010.0,118000.0,1.50728963]
[1753810670269,0.6546824,118010.0,118000.0,1.50828963]
[1753810670567,0.48519,118010.0,118000.0,1.50828963]
[1753810670765,0.48519,118010.0,118000.0,1.4322932]
[1753810671958,0.6546824,118010.0,118000.0,1.4322932]
[1753810672562,0.2193524,118010.0,118000.0,1.4322932]
[1753810672762,0.2193524,118010.0,118000.0,1.67384892]
[1753810672763,0.04986,118010.0,118000.0,1.67384892]
[1753810673066,0.697033,118030.0,118020.0,0.653488]
[1753810673465,0.697033,118030.0,118020.0,1.364128]
[1753810674064,0.93858872,118030.0,118020.0,1.293028]
[1753810674263,0.93858872,118030.0,118020.0,1.243898]
[1753810674859,0.93858872,118030.0,118020.0,1.293028]
[1753810675064,0.93858872,118030.0,118020.0,1.243898]
[1753810675570,0.93958872,118030.0,118020.0,1.293028]
[1753810675868,0.93958872,118030.0,118020.0,1.364048]
[1753810676868,0.93958872,118030.0,118020.0,0.653488]
[1753810677071,0.93958872,118030.0,118020.0,1.363848]
[1753810677571,0.93958872,118030.0,118020.0,0.653488]
[1753810677769,0.93958872,118030.0,118020.0,1.363848]
[1753810678069,0.93958872,118030.0,118020.0,1.023338]
[1753810678771,0.93958872,118030.0,118020.0,1.196228]
[1753810679064,0.93958872,118030.0,118020.0,0.534998]
[1753810679666,0.93958872,118030.0,118020.0,0.312978]
[1753810679865,0.93958872,118030.0,118020.0,0.200868]
[1753810680170,0.77755562,118030.0,118020.0,0.169478]
[1753810680666,1.06669562,118030.0,118020.0,0.169478]
[1753810681272,1.06669562,118030.0,118020.0,0.373758]